bitfinex/quotes_BTCUSD_20251021
["timestamp","ask_amount","ask_price","bid_price","bid_amount"]
[1761086320485,0.93614666,108940.0,108930.0,4.937e-05]
[1761086320685,1.08418666,108940.0,108930.0,4.937e-05]
[1761086322504,1.04788438,108940.0,108930.0,4.937e-05]
[1761086322747,1.11085221,108940.0,108930.0,4.937e-05]
[1761086322954,1.11085221,108940.0,108930.0,0.00249494]
[1761086323162,1.08406666,108940.0,108930.0,0.00249494]
[1761086324004,1.04792438,108940.0,108930.0,0.00249494]
[1761086324759,1.11745143,108940.0,108930.0,0.00249494]
[1761086325023,0.18357044,108950.0,108930.0,0.00249494]
[1761086325239,0.62949143,108940.0,108930.0,4.937e-05]
[1761086325578,0.77725143,108940.0,108930.0,4.937e-05]
[1761086326037,0.67134729,108940.0,108930.0,4.937e-05]
[1761086326243,1.11725143,108940.0,108930.0,4.937e-05]
[1761086326644,1.03395413,108940.0,108930.0,4.937e-05]
[1761086326846,0.67134729,108940.0,108930.0,4.937e-05]
[1761086327068,0.69395413,108940.0,108930.0,4.937e-05]
[1761086327308,0.51028684,108940.0,108930.0,0.18365351]
[1761086327531,0.18358688,108950.0,108930.0,0.18365351]
[1761086327532,0.69387372,108950.0,108930.0,0.18365351]
[1761086327744,0.54619413,108940.0,108930.0,4.937e-05]
[1761086328108,0.54619413,108940.0,108930.0,0.18365351]
[1761086328493,0.69379372,108950.0,108930.0,0.20201392]
[1761086328682,0.54619372,108950.0,108930.0,0.20201392]
[1761086328954,0.69379372,108950.0,108930.0,0.20201392]
[1761086329296,0.18358729,108940.0,108930.0,0.20201392]
[1761086329502,0.54619413,108940.0,108930.0,4.937e-05]
[1761086329801,0.36260684,108940.0,108930.0,0.18365351]
[1761086330321,0.54619413,108940.0,108930.0,4.937e-05]
[1761086330525,0.88619413,108940.0,108930.0,4.937e-05]
[1761086330925,0.14748,108940.0,108930.0,0.00249494]
[1761086331152,0.54617922,108950.0,108930.0,0.2873381]
[1761086331408,0.54619413,108940.0,108930.0,4.937e-05]
[1761086331541,0.36260684,108940.0,108930.0,0.18365351]
[1761086331737,0.18358729,108940.0,108930.0,0.0376936]
[1761086331946,0.69361984,108950.0,108930.0,0.18365351]
[1761086332146,0.18358729,108940.0,108930.0,0.18365351]
[1761086332360,0.18358729,108940.0,108930.0,4.937e-05]
[1761086332564,0.54619413,108940.0,108930.0,4.937e-05]
[1761086333022,0.54619413,108940.0,108930.0,0.18365351]
[1761086333258,0.70260684,108960.0,108940.0,0.18358729]
[1761086333468,0.54617728,108950.0,108930.0,0.32493986]
[1761086333673,0.54619413,108940.0,108930.0,4.937e-05]
[1761086333872,0.36260684,108940.0,108930.0,0.20201392]
[1761086334078,0.54617728,108950.0,108930.0,0.20201392]
[1761086334289,0.54617728,108950.0,108930.0,0.25623541]
[1761086334506,0.55533849,108960.0,108940.0,0.18358729]
[1761086334711,0.70257849,108960.0,108940.0,0.18358729]
[1761086335031,0.19273165,108960.0,108950.0,0.18357044]
[1761086335252,0.53271481,108970.0,108950.0,0.18357044]
[1761086335451,0.18355359,108960.0,108950.0,0.18357044]
[1761086335902,1.04252165,108970.0,108950.0,0.18357044]
[1761086336156,0.19271481,108970.0,108950.0,0.18357044]
[1761086336390,0.19271481,108970.0,108950.0,0.20192748]
[1761086336589,0.18357044,108950.0,108940.0,0.14925601]
[1761086336790,0.18355359,108960.0,108950.0,0.18357044]
[1761086336999,0.19271481,108970.0,108950.0,0.18357044]
[1761086337200,0.5553504,108980.0,108960.0,0.18355359]
[1761086337413,0.54614952,108990.0,108970.0,0.18353675]
[1761086337611,0.54614952,108990.0,108970.0,0.19688575]
[1761086337612,0.33058268,108990.0,108970.0,0.19688575]
[1761086337842,0.55532527,109000.0,108980.0,0.18351991]
[1761086337996,0.56057424,109010.0,108990.0,0.18350307]
[1761086338323,0.33048802,109000.0,108980.0,0.1926959]
[1761086338577,0.19267822,108990.0,108960.0,0.33977126]
[1761086338761,0.19267822,108990.0,108970.0,0.18353675]
[1761086338762,0.18350307,108990.0,108970.0,0.18353675]
[1761086339182,0.66144432,109000.0,108980.0,0.18351991]
[1761086339536,0.18350307,108990.0,108980.0,0.18351991]
[1761086339875,0.29883748,109000.0,108980.0,0.18351991]
[1761086340080,0.18350307,108990.0,108980.0,0.18351991]
[1761086340300,0.18350307,108990.0,108970.0,0.27335576]
[1761086340497,0.18351991,108980.0,108960.0,0.33064296]
[1761086340654,0.18351991,108980.0,108970.0,0.18353675]
[1761086340858,0.3954059,109020.0,108970.0,0.09899584]
[1761086341080,0.01898213,109020.0,109010.0,0.1834694]
[1761086341286,0.55519805,109040.0,109010.0,0.19264287]
[1761086341482,0.01478525,109050.0,109030.0,0.18343364]
[1761086341678,0.01478525,109050.0,109040.0,0.20176081]
[1761086341679,0.0004,109050.0,109040.0,0.20176081]
[1761086341881,0.1472,109050.0,109040.0,0.20176081]
[1761086342120,0.3306021,109050.0,109040.0,0.01834189]
[1761086342275,0.1834579,109020.0,109000.0,0.18348623]
[1761086342476,0.69282474,109020.0,109000.0,0.18348623]
[1761086342699,0.14676,109020.0,109010.0,0.19125439]
[1761086342875,0.19346556,109050.0,109020.0,0.18345235]
[1761086343090,0.70187722,109040.0,109000.0,0.19266054]
[1761086343288,0.54604322,109030.0,109010.0,0.18346557]
[1761086343487,0.54604322,109030.0,109000.0,0.32100766]
[1761086343488,0.14668,109020.0,109000.0,0.32100766]
[1761086343799,0.54607624,109010.0,108980.0,0.18351918]
[1761086344022,0.18348623,109000.0,108990.0,0.18350307]
[1761086344179,0.14664,109000.0,108990.0,0.18350307]
[1761086344374,0.33008623,109000.0,108990.0,0.18350307]
[1761086344832,0.55523203,109020.0,108990.0,0.23855559]
[1761086345020,0.18348623,109000.0,108990.0,0.18355069]
[1761086345762,0.19262519,109020.0,109010.0,0.1834694]
[1761086345763,0.14656,109020.0,109010.0,0.1834694]
[1761086345919,0.0004,109050.0,109020.0,0.18345257]
[1761086346176,0.36260684,109040.0,109020.0,0.18345183]
[1761086346329,0.55557919,109050.0,109020.0,0.19288945]
[1761086346533,0.14648,109040.0,109030.0,0.18343545]
[1761086346730,0.19297235,109050.0,109030.0,0.18343545]
[1761086347153,0.18343575,109030.0,109010.0,0.19264287]
[1761086347379,0.18343575,109030.0,109010.0,0.33564022]
[1761086347597,0.32983575,109030.0,109020.0,0.18345257]
[1761086347798,0.33032911,109030.0,109020.0,0.18345257]
[1761086347951,0.14689336,109030.0,109020.0,0.18345257]
[1761086348151,0.33032911,109030.0,109020.0,0.18345257]
[1761086348351,0.14689336,109030.0,109020.0,0.18345257]
[1761086348823,0.14689336,109030.0,109010.0,0.1834694]
[1761086349119,0.33032911,109030.0,109010.0,0.22108239]
[1761086349482,0.14628,109020.0,109010.0,0.22108239]
[1761086349703,0.32973257,109020.0,109000.0,0.19266054]
[1761086349922,0.69233941,109020.0,109000.0,0.27330524]
[1761086350108,0.32973257,109020.0,109000.0,0.27330524]
[1761086350910,0.32973257,109020.0,109010.0,0.1834694]
[1761086351110,0.14628,109020.0,109010.0,0.1834694]
[1761086351317,0.32973257,109020.0,109010.0,0.1834694]
[1761086351511,0.32973257,109020.0,109000.0,0.27330524]
[1761086351512,0.69233941,109020.0,109000.0,0.27330524]
[1761086351764,0.69233941,109020.0,109000.0,0.18348623]
[1761086351765,0.1834694,109010.0,109000.0,0.18348623]
[1761086351922,0.70151203,109020.0,109000.0,0.18348623]
[1761086353377,0.33890519,109020.0,109010.0,0.1834694]
[1761086353554,0.18392911,109030.0,109020.0,0.18345257]
[1761086353754,0.32996911,109030.0,109020.0,0.18345257]
[1761086353965,0.32996911,109030.0,109010.0,0.27328841]
[1761086354169,0.18345257,109020.0,109010.0,0.27328841]
[1761086354374,0.18345257,109020.0,109000.0,0.19266054]
[1761086354375,0.54605941,109020.0,109000.0,0.18348623]
[1761086354536,0.54605941,109020.0,109010.0,0.1834694]
[1761086354537,0.18345257,109020.0,109010.0,0.1834694]
[1761086354726,0.32945257,109020.0,109010.0,0.1834694]
[1761086355570,0.146,109020.0,109010.0,0.24529052]
[1761086355780,0.32945257,109020.0,109010.0,0.1834694]
[1761086356203,0.55570773,109030.0,109020.0,0.18345257]
[1761086356593,0.14637336,109030.0,109020.0,0.18345257]
[1761086356800,0.18392911,109030.0,109020.0,0.18345257]
[1761086357201,0.32976911,109030.0,109020.0,0.18345257]
[1761086357359,0.00049336,109030.0,109020.0,0.23849002]
[1761086357599,0.00049336,109030.0,109020.0,0.67257062]
[1761086357888,0.00049336,109030.0,109020.0,0.30996378]
[1761086358312,0.00049336,109030.0,109020.0,0.27327158]
[1761086359674,0.00049336,109030.0,109020.0,0.63587842]
[1761086360075,1e-08,109030.0,109020.0,0.63587842]
[1761086360563,1e-08,109030.0,109020.0,0.64965998]
[1761086360798,1e-08,109030.0,109020.0,1.00965996]
[1761086361028,1e-08,109030.0,109020.0,1.09947897]
[1761086361283,1e-08,109030.0,109020.0,1.07569742]
[1761086361505,1e-08,109030.0,109020.0,0.73569742]
[1761086361737,1e-08,109030.0,109020.0,0.74569741]
[1761086362431,1e-08,109030.0,109020.0,0.36309059]
[1761086362657,1e-08,109030.0,109020.0,0.90857059]
[1761086362888,1e-08,109030.0,109020.0,0.41875158]
[1761086363114,1e-08,109030.0,109020.0,0.23529901]
[1761086363353,1e-08,109030.0,109020.0,0.41875158]
[1761086363354,0.18343576,109030.0,109020.0,0.41875158]
[1761086363595,0.18343576,109030.0,108990.0,0.19302564]
[1761086363596,0.18345322,109020.0,108990.0,0.19302564]
[1761086363891,0.18348623,109000.0,108990.0,0.27367125]
[1761086364110,0.54607992,109010.0,108990.0,0.3202996]
[1761086364551,0.54607992,109010.0,109000.0,0.18348623]
[1761086364757,0.18347308,109010.0,109000.0,0.18348623]
[1761086364979,0.32887308,109010.0,109000.0,0.18348623]
[1761086365215,0.1454,109010.0,109000.0,0.18348623]
[1761086365448,0.3288694,109010.0,109000.0,0.18348623]
[1761086365685,0.3288694,109010.0,108990.0,0.3202996]
[1761086365908,0.3288694,109010.0,109000.0,0.18348623]
[1761086366633,1e-08,109030.0,109010.0,0.1834694]
[1761086366878,0.50796684,109060.0,109040.0,0.18341451]
[1761086367128,0.1834021,109050.0,109040.0,0.19423858]
[1761086367380,0.55190853,109070.0,109050.0,0.1834021]
[1761086367629,0.1452,109060.0,109050.0,0.1834021]
[1761086367847,0.69119213,109060.0,109040.0,4.937e-05]
[1761086368050,0.54600894,109050.0,109040.0,4.937e-05]
[1761086369855,0.88600894,109050.0,109040.0,4.937e-05]
[1761086370055,1.24861578,109050.0,109040.0,4.937e-05]
[1761086370535,1.32206315,109050.0,109040.0,4.937e-05]
[1761086370790,1.34751585,109050.0,109040.0,4.937e-05]
[1761086370975,1.24869991,109000.0,108990.0,0.00034917]
[1761086371216,1.39369991,109000.0,108990.0,0.00084253]
[1761086371458,1.39369991,109000.0,108990.0,1e-08]
[1761086371645,1.42988219,109000.0,108990.0,1e-08]
[1761086372183,1.42984219,109000.0,108990.0,1e-08]
[1761086375556,1.44984217,109000.0,108990.0,1e-08]
[1761086376400,1.30488217,109000.0,108990.0,1e-08]
[1761086376648,1.42960219,109000.0,108990.0,1e-08]
[1761086376835,1.43960218,109000.0,108990.0,1e-08]
[1761086377091,1.44960217,109000.0,108990.0,1e-08]
[1761086378619,1.51670322,109000.0,108990.0,1e-08]
[1761086378838,1.54039139,109000.0,108990.0,1e-08]
[1761086379052,1.49869028,109000.0,108990.0,1e-08]
[1761086379239,1.48224067,109000.0,108990.0,1e-08]
[1761086379481,1.52394178,109000.0,108990.0,1e-08]
[1761086380252,1.50868841,109000.0,108990.0,1e-08]
[1761086381350,0.37178704,108930.0,108900.0,0.68365384]
[1761086381522,0.50708684,108920.0,108910.0,0.18363786]
[1761086381729,0.328101,108920.0,108910.0,0.18363786]
[1761086381948,0.328101,108920.0,108910.0,0.00527678]
[1761086383278,0.69070784,108920.0,108910.0,0.00527678]
[1761086384117,0.14448,108920.0,108910.0,0.18891464]
[1761086384337,0.328101,108920.0,108910.0,0.18891464]
[1761086384692,0.69070784,108920.0,108910.0,0.00527678]
[1761086385686,0.14432,108920.0,108910.0,0.20727842]
[1761086385912,0.327941,108920.0,108910.0,0.00527678]
[1761086386129,0.327941,108920.0,108910.0,0.18891464]
[1761086386349,0.88623395,108940.0,108920.0,0.183621]
[1761086386557,0.32784414,108930.0,108910.0,0.19281975]
[1761086386759,0.183621,108920.0,108910.0,0.08858053]
[1761086386961,0.18363786,108910.0,108900.0,0.50014845]
[1761086387164,0.18363786,108910.0,108900.0,0.77362218]
[1761086387369,0.183621,108920.0,108910.0,0.18363786]
[1761086387752,0.183621,108920.0,108900.0,0.77362218]
[1761086387963,0.183621,108920.0,108910.0,0.18363786]
[1761086388162,0.33702434,108930.0,108910.0,0.18363786]
[1761086388366,0.33702434,108930.0,108910.0,0.20200164]
[1761086388608,0.183621,108920.0,108910.0,0.20200164]
[1761086389347,0.183621,108920.0,108900.0,0.86344119]
[1761086389540,0.18363786,108910.0,108900.0,0.86344119]
[1761086389743,0.183621,108920.0,108900.0,0.86344119]
[1761086389901,0.183621,108920.0,108910.0,0.18363786]
[1761086390445,0.183621,108920.0,108900.0,0.86344119]
[1761086390653,0.18363786,108910.0,108900.0,0.50014845]
[1761086391072,0.32763786,108910.0,108900.0,0.50014845]
[1761086391411,0.77341382,108910.0,108900.0,0.50014845]
[1761086392706,0.32763786,108910.0,108900.0,0.50014845]
[1761086392906,0.77341382,108910.0,108900.0,0.50577508]
[1761086393620,0.18363786,108910.0,108900.0,0.50577508]
[1761086393826,0.32747786,108910.0,108900.0,0.50577508]
[1761086394027,0.62941382,108910.0,108900.0,0.50577508]
[1761086394269,0.77325382,108910.0,108900.0,0.50577508]
[1761086394483,0.62941382,108910.0,108900.0,0.50577508]
[1761086394707,0.77321382,108910.0,108900.0,0.50577508]
[1761086395291,0.32743786,108910.0,108900.0,0.50577508]
[1761086395523,0.77321382,108910.0,108900.0,0.50577508]
[1761086396363,0.77421382,108910.0,108900.0,0.50577508]
[1761086397055,0.32835786,108910.0,108900.0,0.50577508]
[1761086397257,0.77413382,108910.0,108900.0,0.50577508]
[1761086397628,0.32835786,108910.0,108900.0,0.50577508]
[1761086397829,0.77413382,108910.0,108900.0,0.50577508]
[1761086398026,0.32835786,108910.0,108900.0,0.50577508]
[1761086399187,0.14472,108910.0,108900.0,0.6894298]
[1761086399335,0.001,108910.0,108900.0,0.6894298]
[1761086399540,0.001,108910.0,108900.0,0.77924881]
[1761086400254,0.1836214,108920.0,108900.0,0.77924881]
[1761086400463,0.1836214,108920.0,108910.0,0.18363786]
[1761086400667,0.97858243,108940.0,108920.0,0.18362069]
[1761086400844,0.32704414,108930.0,108910.0,0.18363786]
[1761086401076,0.53280647,108940.0,108920.0,0.183621]
[1761086401278,0.19280743,108960.0,108940.0,0.18358353]
[1761086401492,0.18357044,108950.0,108930.0,0.32697393]
[1761086401695,0.18360414,108930.0,108910.0,0.4]
[1761086401944,0.183621,108920.0,108910.0,0.8168563]
[1761086402138,0.183621,108920.0,108910.0,0.63321901]
[1761086402352,0.183621,108920.0,108910.0,0.22404695]
[1761086402556,0.183621,108920.0,108910.0,0.00014845]
[1761086402768,0.14332,108930.0,108920.0,0.18362095]
[1761086402975,0.1927713,108970.0,108950.0,0.18356983]
[1761086403181,0.69880666,108980.0,108960.0,0.18355359]
[1761086403182,0.19800067,108980.0,108960.0,0.18355359]
[1761086403380,0.01893735,108980.0,108970.0,0.18353675]
[1761086403651,0.18574121,108990.0,108970.0,0.18353675]
[1761086403810,0.01893974,108990.0,108980.0,0.18351991]
[1761086404016,0.01893974,108990.0,108980.0,0.2008719]
[1761086404017,0.18350307,108990.0,108980.0,0.2008719]
[1761086404258,0.62927903,108990.0,108980.0,0.00014845]
[1761086404462,0.79922437,108990.0,108980.0,1e-08]
[1761086404625,1.11251903,108990.0,108980.0,1e-08]
[1761086405290,0.18354579,108970.0,108940.0,0.33596526]
[1761086405419,0.18355359,108960.0,108940.0,0.47880107]
[1761086405615,0.6293464,108950.0,108940.0,0.00014834]
[1761086405873,0.18355359,108960.0,108940.0,0.20209435]
[1761086406099,0.33588262,108970.0,108950.0,0.18357044]
[1761086406276,0.18353881,108970.0,108940.0,0.282734]
[1761086406503,0.1835539,108960.0,108940.0,0.282734]
[1761086406706,0.18553881,108970.0,108950.0,0.18357044]
[1761086406831,0.18355359,108960.0,108950.0,0.18357044]
[1761086407254,0.18355359,108960.0,108940.0,0.3446009]
[1761086407675,0.001,108970.0,108950.0,0.34409083]
[1761086408072,0.18355359,108960.0,108950.0,0.32665044]
[1761086408272,0.18357044,108950.0,108940.0,0.00014834]
[1761086408449,0.18357044,108950.0,108940.0,0.32673563]
[1761086409071,0.18355359,108960.0,108940.0,0.32673563]
[1761086409198,0.19371559,108970.0,108960.0,0.18355359]
[1761086409199,0.01017683,108970.0,108960.0,0.18355359]
[1761086409431,0.33563538,108970.0,108950.0,0.18357044]
[1761086409676,0.44577596,108970.0,108950.0,0.18357044]
[1761086410089,0.33563661,108980.0,108960.0,0.18355359]
[1761086410346,0.44577596,108970.0,108960.0,0.18255359]
[1761086410573,0.001,108970.0,108960.0,0.18255359]
[1761086410779,0.63031271,108970.0,108950.0,0.18357044]
[1761086411195,0.44677596,108970.0,108960.0,0.18355359]
[1761086411535,0.44577596,108980.0,108960.0,0.18708208]
[1761086411792,0.62929611,108980.0,108960.0,0.18355359]
[1761086411931,0.63029611,108980.0,108960.0,0.18355359]
[1761086412138,0.44577596,108970.0,108960.0,0.18355359]
[1761086413507,0.62931271,108970.0,108950.0,0.18357044]
[1761086413702,0.44577596,108960.0,108950.0,0.18357044]
[1761086413913,0.44577596,108970.0,108960.0,0.18355277]
[1761086414504,0.001,108980.0,108970.0,0.18353675]
[1761086414705,0.46016332,109030.0,108990.0,0.19264629]
[1761086414908,0.58837596,109040.0,109020.0,0.18345257]
[1761086415140,0.45494774,109030.0,109000.0,0.1426]
[1761086415312,0.45494774,109030.0,109000.0,0.32608359]
[1761086415313,0.19260903,109030.0,109000.0,0.32608359]
[1761086415494,0.19260903,109030.0,108990.0,0.18347114]
[1761086415495,0.62924705,109010.0,108990.0,0.32607114]
[1761086415694,0.781002,109020.0,109000.0,0.18348623]
[1761086415946,0.78149518,109020.0,109000.0,0.18348623]
[1761086416352,0.77232823,109020.0,109000.0,0.18348623]
[1761086416525,0.77232823,109020.0,108990.0,0.33524629]
[1761086416977,0.77232823,109020.0,108970.0,0.58445553]
[1761086416978,0.62925207,109010.0,108970.0,0.58763456]
[1761086417128,0.63842554,109010.0,108980.0,0.23233901]
[1761086417487,0.44577596,109010.0,108990.0,0.18350298]
[1761086417695,0.62925897,109010.0,108990.0,0.18350298]
[1761086418141,0.18348623,109000.0,108980.0,0.32603832]
[1761086418921,0.78091244,109010.0,108990.0,0.20185337]
[1761086418922,0.77172744,109010.0,108990.0,0.20185337]
[1761086419067,0.18348623,109000.0,108980.0,0.41585733]
[1761086419272,0.18348623,109000.0,108990.0,0.18350307]
[1761086420304,0.33504495,109010.0,108990.0,0.18350307]
[1761086420499,0.18348623,109000.0,108990.0,0.18350307]
[1761086420759,0.33504495,109010.0,108990.0,0.18350307]
[1761086421294,0.00049318,109020.0,109010.0,0.1834694]
[1761086421542,0.00049318,109020.0,109010.0,0.27328841]
[1761086422814,0.00049318,109020.0,109010.0,0.67328841]
[1761086423231,0.00049318,109020.0,109010.0,0.27328841]
[1761086423433,0.00049318,109020.0,109010.0,0.33319787]
[1761086424185,0.00049318,109020.0,109010.0,0.77897383]
[1761086424393,0.00049318,109020.0,109010.0,0.33319787]
[1761086425974,1e-08,109020.0,109010.0,0.77897383]
[1761086426297,1e-08,109020.0,109010.0,0.79897381]
[1761086426765,1e-08,109020.0,109010.0,1.17515609]
[1761086427576,1e-08,109020.0,109010.0,1.17615609]
[1761086427756,1e-08,109020.0,109010.0,1.57515609]
[1761086428161,1e-08,109020.0,109010.0,1.57715609]
[1761086429214,1e-08,109020.0,109010.0,1.57915609]
[1761086429526,0.0004,109100.0,109090.0,0.18333486]
[1761086429657,0.0004,109100.0,109090.0,0.3252432]
[1761086429859,0.00860719,109100.0,109090.0,0.3252432]
[1761086430263,0.0004,109100.0,109090.0,0.3252432]
[1761086430622,0.44617596,109100.0,109090.0,0.00014834]
[1761086430798,0.83176289,109100.0,109090.0,0.00014834]
[1761086431016,0.38598693,109100.0,109090.0,0.00014834]
[1761086431215,0.82147624,109100.0,109090.0,0.00014834]
[1761086431381,0.01929558,109100.0,109090.0,0.3251232]
[1761086431584,0.0004,109100.0,109090.0,0.44745453]
[1761086431900,0.0004,109100.0,109090.0,0.3251232]
[1761086432109,0.0024,109100.0,109090.0,0.3251232]
[1761086432323,0.0034,109100.0,109090.0,0.3251232]
[1761086433131,0.0014,109100.0,109090.0,0.1834832]
[1761086433589,0.0004,109100.0,109090.0,0.1834832]
[1761086435170,0.0004,109100.0,109090.0,0.00014834]
[1761086435171,0.4475708,109100.0,109090.0,0.00014834]
[1761086437895,0.4485708,109100.0,109090.0,0.00014834]
[1761086439267,0.82389112,109100.0,109090.0,0.00014834]
[1761086439487,0.84741498,109100.0,109090.0,0.00014834]
[1761086439773,0.88359726,109100.0,109090.0,0.00014834]
[1761086439991,0.91510343,109100.0,109090.0,0.00014834]
[1761086440206,0.87516784,109100.0,109090.0,0.00014834]
[1761086440415,0.92244628,109100.0,109090.0,0.00014834]
[1761086440624,0.93582355,109100.0,109090.0,0.00014834]
[1761086440835,0.95324298,109100.0,109090.0,0.00014834]
[1761086441071,0.4007317,109100.0,109090.0,0.00014834]
[1761086441325,0.02170343,109100.0,109090.0,0.00014834]
[1761086441541,0.46947939,109100.0,109090.0,0.00014834]
[1761086441753,0.61051939,109100.0,109090.0,0.00014834]
[1761086442181,0.60851939,109100.0,109090.0,0.00014834]
[1761086442496,0.60951939,109100.0,109090.0,0.00014834]
[1761086442692,0.60851939,109100.0,109090.0,0.00014834]
[1761086443105,0.62595204,109100.0,109090.0,0.00014834]
[1761086443344,0.98860304,109100.0,109090.0,0.00014834]
[1761086443548,0.98760304,109100.0,109090.0,0.00014834]
[1761086444386,1.01910921,109100.0,109090.0,0.00014834]
[1761086444590,0.87806921,109100.0,109090.0,0.00014834]
[1761086444727,1.01902921,109100.0,109090.0,0.00014834]
[1761086444977,1.02013099,109100.0,109090.0,0.00014834]
[1761086445261,0.98862482,109100.0,109090.0,0.00014834]
[1761086445489,0.54276886,109100.0,109090.0,0.00014834]
[1761086445703,0.20176886,109100.0,109090.0,0.00014834]
[1761086445914,0.20276886,109100.0,109090.0,0.00014834]
[1761086446141,0.20176886,109100.0,109090.0,0.00014834]
[1761086446548,0.20276886,109100.0,109090.0,0.00014834]
[1761086446790,0.02998804,109100.0,109090.0,0.1834832]
[1761086446995,0.00379484,109100.0,109090.0,0.31181809]
[1761086447198,0.02276921,109100.0,109090.0,0.00014834]
[1761086447427,0.67733874,109100.0,109090.0,0.00014834]
[1761086447634,0.98847726,109100.0,109090.0,0.00014834]
[1761086447903,1.01998343,109100.0,109090.0,0.00014834]
[1761086448586,0.99528267,109100.0,109090.0,0.00014834]
[1761086448766,0.93581085,109100.0,109090.0,0.00014834]
[1761086449237,0.95935011,109100.0,109090.0,0.00014834]
[1761086449465,0.96035011,109100.0,109090.0,0.00014834]
[1761086450515,0.92884394,109100.0,109090.0,0.00014834]
[1761086451360,1.2904089,109100.0,109090.0,0.00014834]
[1761086451565,1.24313046,109100.0,109090.0,0.00014834]
[1761086451778,1.30625056,109100.0,109090.0,0.00014834]
[1761086452006,0.36156496,109060.0,109040.0,0.14072]
[1761086452216,0.38053933,109060.0,109040.0,0.00036543]
[1761086452506,0.38053933,109060.0,109040.0,0.1837842]
[1761086452687,0.36156496,109050.0,109040.0,0.00036543]
[1761086452903,0.19597708,109070.0,109040.0,0.18378435]
[1761086453110,0.36156496,109060.0,109040.0,0.18378435]
[1761086453286,0.01902935,109060.0,109040.0,0.18478435]
[1761086453492,0.36156496,109060.0,109040.0,0.22352334]
[1761086453723,0.38059431,109060.0,109040.0,0.22252334]
[1761086454186,0.38059431,109060.0,109040.0,0.00136543]
[1761086454399,0.36156496,109050.0,109040.0,0.00136543]
[1761086454622,0.01902935,109050.0,109040.0,0.00136543]
[1761086454835,0.38159431,109060.0,109040.0,0.00036543]
[1761086455083,0.03655432,109060.0,109040.0,0.00036543]
[1761086455305,0.36256496,109060.0,109040.0,0.00036543]
[1761086456168,0.36156496,109060.0,109040.0,0.18378371]
[1761086457085,0.36156496,109080.0,109050.0,0.1833983]
[1761086457300,0.14024,109070.0,109050.0,0.1833983]
[1761086457526,0.00034881,109070.0,109060.0,0.18338529]
[1761086460871,0.50164496,109090.0,109060.0,0.32346529]
[1761086461082,0.52069384,109090.0,109060.0,0.32346529]
[1761086461299,0.52069384,109090.0,109060.0,0.38313355]
[1761086461514,0.15912888,109090.0,109070.0,0.1833683]
[1761086461737,0.36156496,109090.0,109070.0,0.1833683]
[1761086461952,0.4804,109100.0,109070.0,0.1833683]
[1761086462176,0.01944805,109100.0,109090.0,0.18333486]
[1761086462404,0.0004,109100.0,109090.0,0.24646774]
[1761086462615,0.0004,109100.0,109090.0,0.23199951]
[1761086462846,0.0004,109100.0,109090.0,0.32181852]
[1761086463519,0.0004,109100.0,109090.0,0.32118395]
[1761086463983,0.0004,109100.0,109090.0,0.00036543]
[1761086464216,0.36196496,109100.0,109090.0,0.18370029]
[1761086464456,0.0004,109100.0,109090.0,0.32358029]
[1761086465131,0.0004,109100.0,109090.0,0.14024543]
[1761086465595,0.0004,109100.0,109090.0,0.43173278]
[1761086465799,0.0004,109100.0,109090.0,0.47490764]
[1761086466832,0.0004,109100.0,109090.0,0.8364726]
[1761086467243,1e-08,109100.0,109090.0,0.8374726]
[1761086467446,1e-08,109100.0,109090.0,1.2374726]
[1761086467653,0.00104609,109100.0,109090.0,1.2374726]
[1761086468015,0.00104609,109100.0,109090.0,0.87590764]
[1761086468720,0.00104609,109100.0,109090.0,1.2384726]
[1761086469165,0.00104609,109100.0,109090.0,0.87590764]
[1761086469318,1e-08,109100.0,109090.0,1.2374726]
[1761086469524,1e-08,109100.0,109090.0,0.87690764]
[1761086469762,1e-08,109100.0,109090.0,1.2384726]
[1761086470761,1e-08,109100.0,109090.0,1.62465487]
[1761086470963,1e-08,109100.0,109090.0,1.63465486]
[1761086471758,1e-08,109100.0,109090.0,1.98621983]
[1761086471987,1e-08,109130.0,109120.0,0.54484941]
[1761086472199,1e-08,109130.0,109120.0,0.86254028]
[1761086472397,1e-08,109140.0,109130.0,0.18326766]
[1761086472621,0.025,109180.0,109170.0,0.18320051]
[1761086472860,0.05220784,109180.0,109170.0,0.32256051]
[1761086473007,0.05220784,109180.0,109170.0,0.13936]
[1761086473210,0.04397299,109180.0,109170.0,0.44463583]
[1761086473409,0.04397299,109180.0,109170.0,0.80620079]
[1761086473410,0.025,109180.0,109170.0,0.80620079]
[1761086473623,0.02549418,109180.0,109170.0,0.80620079]
[1761086473998,0.02549418,109180.0,109170.0,0.44463583]
[1761086475056,0.02549418,109180.0,109170.0,0.44563583]
[1761086475282,0.02549418,109180.0,109170.0,0.80720079]
[1761086475526,0.02549418,109180.0,109170.0,0.44563583]
[1761086475744,0.02549418,109180.0,109170.0,0.44663583]
[1761086475948,0.02549418,109180.0,109170.0,0.80820079]
[1761086476370,0.02549418,109180.0,109170.0,0.44663583]
[1761086477803,0.02549418,109180.0,109170.0,0.80820079]
[1761086478014,0.0282813,109180.0,109170.0,1.20820079]
[1761086478246,0.0282813,109180.0,109170.0,0.84663583]
[1761086479119,0.025,109200.0,109190.0,0.18316695]
[1761086479359,0.025,109220.0,109210.0,0.18313341]
[1761086479596,0.02514824,109220.0,109210.0,0.64690853]
[1761086479806,0.02514824,109220.0,109210.0,1.03451738]
[1761086480221,0.02514824,109220.0,109210.0,0.67295242]
[1761086480431,0.02514824,109220.0,109210.0,1.12433639]
[1761086481504,0.02514824,109220.0,109210.0,0.76277143]
[1761086481728,0.02514824,109220.0,109210.0,0.36277143]
[1761086481949,0.5255532,109220.0,109210.0,0.001]
[1761086482169,0.5255532,109220.0,109210.0,0.002]
[1761086482591,0.8655532,109220.0,109210.0,0.002]
[1761086482804,0.90173548,109220.0,109210.0,0.002]
[1761086483010,0.76289548,109220.0,109210.0,0.001]
[1761086483258,0.36444824,109220.0,109210.0,0.001]
[1761086483502,0.0004,109230.0,109220.0,0.18311664]
[1761086483718,1e-08,109230.0,109220.0,0.4685594]
[1761086483949,1e-08,109230.0,109220.0,0.77563042]
[1761086484154,1e-08,109240.0,109230.0,0.18309988]
[1761086484366,1e-08,109240.0,109230.0,1.0916735]
[1761086484828,1e-08,109240.0,109230.0,1.08067351]
[1761086485038,1e-08,109240.0,109230.0,0.33292628]
[1761086485251,0.00208844,109240.0,109230.0,0.33292628]
[1761086485491,0.00208844,109240.0,109230.0,0.36910856]
[1761086485737,0.00208844,109240.0,109230.0,0.27191889]
[1761086486767,0.00208844,109240.0,109230.0,0.27291889]
[1761086486976,0.3636534,109240.0,109230.0,0.09081901]
[1761086487190,0.3636534,109240.0,109230.0,0.002]
[1761086487416,0.3636534,109240.0,109230.0,0.001]
[1761086487826,0.3636534,109240.0,109230.0,0.18509988]
[1761086487827,0.00208844,109240.0,109230.0,0.18509988]
[1761086488037,0.00208844,109240.0,109230.0,0.32808706]
[1761086488247,0.00208844,109240.0,109230.0,0.31077708]
[1761086488457,0.14056844,109240.0,109230.0,0.31077708]